fUST/lending_fUST_20240429
["ID","MTS","AMOUNT","RATE_DAILY","PERIOD"]
[324864382,1714381776029,-489.95013615,0.00014547,2]
[324864383,1714381776048,-500.0,0.00014547,2]
[324864384,1714381776068,-371.53054115,0.00014547,2]
[324864385,1714381776088,-500.0,0.00014547,2]
[324864386,1714381776108,-500.0,0.00014547,2]
[324864387,1714381776129,-500.0,0.00014547,2]
[324864388,1714381776149,-500.0,0.00014547,2]
[324864389,1714381776170,-500.0,0.00014547,2]
[324864390,1714381776190,-500.0,0.00014547,2]
[324864391,1714381776213,-646.92,0.00014547,2]
[324864392,1714381776233,-202.82,0.00014547,2]
[324864393,1714381776253,-203.04,0.00014547,2]
[324864394,1714381776272,-632.19,0.00014547,2]
[324864395,1714381776292,-202.14,0.00014547,2]
[324864396,1714381776312,-300.67,0.00014547,2]
[324864397,1714381776333,-500.0,0.00014547,2]
[324864398,1714381776353,-500.0,0.00014547,2]
[324864399,1714381776373,-633.34433222,0.00014547,2]
[324864400,1714381776394,-6500.0,0.00014792,2]
[324864401,1714381776414,-8396.60132499,0.00014793,2]
[324864402,1714381776435,-405.23363974,0.00014793,2]
[324864403,1714381776455,-500.0,0.00014794,2]
[324864404,1714381776475,-187.65389873,0.00014794,2]
[324864405,1714381776497,-500.0,0.0001482,2]
[324864406,1714381776518,-1150.24,0.0001482,2]
[324864407,1714381776539,-500.0,0.0001482,2]
[324864408,1714381776665,-500.0,0.0001482,2]
[324864409,1714381776689,-500.0,0.00014821,2]
[324864410,1714381776712,-500.0,0.00014821,2]
[324864411,1714381776733,-500.0,0.00014821,2]
[324864412,1714381776754,-508.11830582,0.00014821,2]
[324864413,1714381776777,-307.87982476,0.00014821,2]
[324864414,1714381776799,-231.72,0.00014821,2]
[324864415,1714381776819,-500.0,0.00014821,2]
[324864416,1714381776840,-523.93,0.00014821,2]
[324864417,1714381776862,-312.89043206,0.00015,2]
[324864418,1714381776883,-939.34960788,0.00015,2]
[324864419,1714381776904,-1677.62779446,0.00015,2]
[324864420,1714381776924,-2101.14247839,0.00015,2]
[324864421,1714381776946,-420.0,0.00015065,2]
[324864422,1714381776967,-500.0,0.00015068,2]
[324864423,1714381776991,-500.0,0.00015094,2]
[324864424,1714381777013,-1150.24,0.00015094,2]
[324864425,1714381777035,-500.0,0.00015094,2]
[324864426,1714381777058,-500.0,0.00015095,2]
[324864427,1714381777078,-500.0,0.00015095,2]
[324864428,1714381777098,-500.0,0.00015095,2]
[324864429,1714381777119,-500.0,0.00015095,2]
[324864430,1714381777141,-500.0,0.00015342,2]
[324864431,1714381777163,-500.0,0.00015368,2]
[324864432,1714381777186,-1150.24,0.00015368,2]
[324864433,1714381777208,-500.0,0.00015368,2]
[324864434,1714381777228,-475.16615156,0.00015369,2]
[324864435,1714381777250,-500.0,0.00015369,2]
[324864436,1714381777270,-500.0,0.00015369,2]
[324864437,1714381777290,-210.696,0.00015415,2]
[324864438,1714381777311,-417.0,0.00015415,2]
[324864439,1714381777330,-150.0,0.00015415,2]
[324864440,1714381777350,-500.0,0.00015616,2]
[324864441,1714381777371,-500.0,0.00015642,2]
[324864442,1714381777393,-1150.24,0.00015642,2]
[324864443,1714381777414,-500.0,0.00015642,2]
[324864444,1714381777435,-500.0,0.00015643,2]
[324864445,1714381777457,-466.1729,0.00015643,2]
[324864446,1714381777477,-500.0,0.0001589,2]
[324864447,1714381777499,-422.93,0.00015916,2]
[324864448,1714381777520,-1150.24,0.00015916,2]
[324864449,1714381777541,-500.0,0.00015916,2]
[324864450,1714381777566,-500.0,0.00015917,2]
[324864451,1714381777587,-500.0,0.00016164,2]
[324864452,1714381777609,-1150.24,0.0001619,2]
[324864453,1714381777630,-500.0,0.0001619,2]
[324864454,1714381777651,-500.0,0.00016191,2]
[324864455,1714381777670,-500.0,0.00016438,2]
[324864456,1714381777693,-1150.24,0.00016464,2]
[324864457,1714381777714,-500.0,0.00016464,2]
[324864458,1714381777735,-500.0,0.00016465,2]
[324864459,1714381777757,-587.0,0.00016571,2]
[324864460,1714381777778,-500.0,0.00016712,2]
[324864461,1714381777800,-1150.24,0.00016738,2]
[324864462,1714381777822,-500.0,0.00016738,2]
[324864463,1714381777844,-500.0,0.00016739,2]
[324864464,1714381777867,-151.3927462,0.00016986,2]
[324864465,1714381777888,-588.0,0.00017,2]
[324864466,1714381777910,-1150.24,0.00017012,2]
[324864467,1714381777931,-500.0,0.00017012,2]
[324864468,1714381777951,-500.0,0.00017013,2]
[324864469,1714381777972,-6500.0,0.00017198,2]
[324864470,1714381777993,-1150.24,0.00017286,2]
[324864471,1714381778014,-302.90641638,0.00017286,2]
[324864472,1714381778035,-500.0,0.00017287,2]
[324864473,1714381778056,-154.78330338,0.00017298,2]
[324864474,1714381778078,-6500.0,0.00017298,2]
[324864475,1714381778098,-6500.0,0.00017298,2]
[324864476,1714381778119,-154.82968734,0.00017299,2]
[324864477,1714381778138,-6500.0,0.00017299,2]
[324864478,1714381778158,-36.25887924,0.00017299,2]
[324864512,1714381832762,-500.0,0.00013698,2]
[324864514,1714381832771,-527.19,0.00013698,2]
[324864517,1714381832781,-500.0,0.00013698,2]
[324864518,1714381832791,-500.0,0.0001397,2]
[324864521,1714381832800,-500.0,0.0001397,2]
[324864523,1714381832809,-527.19,0.00013972,2]
[324864525,1714381832818,-500.0,0.00013999,2]
[324864527,1714381832828,-467.56558928,0.00013999,2]
[324864529,1714381832839,-32.43441072,0.00013999,2]
[324864531,1714381832848,-500.0,0.00013999,2]
[324864533,1714381832858,-500.0,0.00013999,2]
[324864535,1714381832867,-500.0,0.00013999,2]
[324864537,1714381832876,-476.63091983,0.00013999,2]
[324864539,1714381832885,-500.0,0.00013999,2]
[324864541,1714381832894,-500.0,0.00013999,2]
[324864543,1714381832903,-500.0,0.00013999,2]
[324864545,1714381832911,-500.0,0.00013999,2]
[324864547,1714381832920,-500.0,0.00014244,2]
[324864548,1714381832929,-509.83217617,0.00014244,2]
[324864550,1714381832938,-527.19,0.00014246,2]
[324864552,1714381832947,-315.41033803,0.00014273,2]
[324864671,1714381838489,-500.0,0.0001397,2]
[324864672,1714381838501,-500.0,0.00013971,2]
[324864673,1714381838510,-500.0,0.00013998,2]
[324864674,1714381838519,-500.0,0.00014244,2]
[324864675,1714381838529,-184.58966197,0.00014273,2]
[324864676,1714381838538,-319.88576632,0.00014273,2]
[324864677,1714381838547,-500.0,0.00014273,2]
[324864678,1714381838555,-500.0,0.00014273,2]
[324864679,1714381838568,-500.0,0.00014273,2]
[324864680,1714381838577,-362.51272268,0.00014518,2]
[324864681,1714381838588,-137.48727732,0.00014518,2]
[324864682,1714381838598,-500.28,0.00014518,2]
[324864683,1714381838609,-527.19,0.0001452,2]
[324864684,1714381838618,-94.45818245,0.00014547,2]
[324864699,1714381840086,-385.10922443,0.00013998,2]
[324864701,1714381840099,-114.89077557,0.00013998,2]
[324864702,1714381840109,-128.40181755,0.00014547,2]
[324864703,1714381840118,-500.0,0.00014547,2]
[324864704,1714381840128,-527.19,0.00014794,2]
[324864705,1714381840138,-527.19,0.00015068,2]
[324864706,1714381840147,-527.19,0.00015342,2]
[324864707,1714381840157,-527.19,0.00015616,2]
[324864708,1714381840167,-527.19,0.0001589,2]
[324864709,1714381840176,-527.19,0.00016164,2]
[324864710,1714381840186,-928.56039633,0.00016432,2]
[324864711,1714381840195,-527.19,0.00016438,2]
[324864712,1714381840205,-527.19,0.00016712,2]
[324864713,1714381840214,-527.19,0.00016986,2]
[324864714,1714381840224,-37.3798321,0.0001726,2]
[324864715,1714381840235,-489.8101679,0.0001726,2]
[324864716,1714381840247,-310.1898321,0.00017297,2]
[324864747,1714381843169,-287.46119114,0.00013999,2]
[324864773,1714381845813,-500.0,0.0001397,2]
[324864774,1714381845823,-272.44087412,0.00013998,2]
[324864775,1714381845832,-212.53880886,0.00013999,2]
[324864776,1714381845841,-500.0,0.00014273,2]
[324864777,1714381845850,-616.57631194,0.00014547,2]
[324864778,1714381845860,-1790.95264629,0.00017297,2]
[324864779,1714381845869,-730.61014924,0.00017297,2]
[324864780,1714381845878,-312.89043206,0.00017297,2]
[324864781,1714381845887,-939.34960788,0.00017298,2]
[324864782,1714381845896,-761.04116961,0.00017298,2]
[324864783,1714381845912,-937.00916426,0.00017298,2]
[324864784,1714381845921,-300.0,0.00017298,2]
[324864785,1714381845930,-939.09810089,0.00017299,2]
[324864787,1714381878470,309.34983401,0.00012628,2]
[324864796,1714382096147,1091.47655963,9.999e-05,2]
[324864799,1714382529119,-1000.0,0.00030594,120]
[324864800,1714382529142,-1057.05069534,0.00030594,120]
[324864801,1714382529164,-3234.83,0.00030594,120]
[324864802,1714382529187,-1061.68195144,0.00030594,120]
[324864803,1714382529208,-10000.0,0.00030594,60]
[324864804,1714382529230,-8915.80809109,0.00030594,120]
[324864805,1714382529252,-525.9,0.00030594,120]
[324864806,1714382529276,-24139.34518576,0.00030594,60]
[324864807,1714382529299,-1391.18335089,0.00030594,120]
[324864808,1714382529320,-300000.0,0.00030594,120]
[324864809,1714382529342,-813.73476731,0.00030594,30]
[324864810,1714382538603,-150.5,0.0002408,35]
[324864811,1714382538626,-150.5,0.0002408,35]
[324864812,1714382538648,-150.5,0.0002409,35]
[324864813,1714382538671,-150.5,0.0002409,35]
[324864814,1714382538694,-150.5,0.000241,35]
[324864815,1714382538717,-150.5,0.000241,35]
[324864816,1714382538740,-233.5,0.00024104,35]
[324864817,1714382538762,-150.5,0.00024114,35]
[324864818,1714382538788,-150.5,0.00024124,35]
[324864819,1714382538810,-3640.0,0.00024134,35]
[324864820,1714382538836,-180.0,0.00024134,35]
[324864821,1714382538860,-3640.0,0.00024144,35]
[324864822,1714382538884,-180.0,0.00024144,35]
[324864823,1714382538906,-3640.0,0.00024154,35]
[324864824,1714382539015,-180.0,0.00024154,35]
[324864825,1714382539071,-150.5,0.0002417,35]
[324864826,1714382539095,-150.5,0.0002418,35]
[324864827,1714382539117,-150.5,0.0002419,35]
[324864828,1714382539148,-2405.9576,0.00026954,30]
[324864829,1714382539172,-1500.0,0.000271,120]
[324864830,1714382539195,-1500.0,0.000272,120]
[324864831,1714382539218,-1500.0,0.000273,120]
[324864832,1714382539240,-500.0,0.00027397,30]
[324864833,1714382539263,-500.0,0.00027397,30]
[324864834,1714382539286,-500.0,0.00027397,30]
[324864835,1714382539308,-500.0,0.00027397,30]
[324864836,1714382539330,-500.0,0.00027397,30]
[324864837,1714382539352,-500.0,0.00027397,30]
[324864838,1714382539374,-500.0,0.00027397,30]
[324864839,1714382539396,-500.0,0.00027397,30]
[324864840,1714382539419,-500.0,0.00027397,30]
[324864841,1714382539452,-500.0,0.00027397,30]
[324864842,1714382539480,-500.0,0.00027397,30]
[324864843,1714382539504,-500.0,0.00027397,30]
[324864844,1714382539529,-500.0,0.00027397,30]
[324864845,1714382539553,-500.0,0.00027397,30]
[324864846,1714382539579,-500.0,0.00027397,30]
[324864847,1714382539602,-500.0,0.00027397,30]
[324864848,1714382539626,-500.0,0.00027397,30]
[324864849,1714382539650,-500.0,0.00027397,30]
[324864850,1714382539673,-500.0,0.00027397,30]
[324864851,1714382539697,-500.0,0.00027397,30]
[324864852,1714382539720,-500.0,0.00027397,30]
[324864853,1714382539744,-500.0,0.00027397,30]
[324864854,1714382539766,-500.0,0.00027397,30]
[324864855,1714382539795,-500.0,0.00027397,30]
[324864856,1714382539819,-474.17754682,0.00027397,30]
[324864857,1714382539843,-1500.0,0.000274,120]
[324864858,1714382539867,-1500.0,0.000275,120]
[324864859,1714382539890,-1500.0,0.000276,120]
[324864860,1714382539914,-200.0,0.00027667,120]
[324864861,1714382539937,-3000.0,0.000277,120]
[324864862,1714382539962,-1500.0,0.000278,120]
[324864863,1714382539984,-1500.0,0.00028,120]
[324864864,1714382540008,-200.0,0.00028209,120]
[324864865,1714382540032,-1500.0,0.000284,120]
[324864866,1714382540055,-168.373609,0.00028493,34]
[324864867,1714382540080,-168.373609,0.00028493,44]
[324864868,1714382540103,-168.373609,0.00028493,55]
[324864869,1714382540126,-168.373609,0.00028493,66]
[324864870,1714382540149,-168.373609,0.00028493,77]
[324864871,1714382540173,-168.373609,0.00028493,87]
[324864872,1714382540196,-168.373609,0.00028493,98]
[324864873,1714382540219,-168.373609,0.00028493,109]
[324864874,1714382540242,-168.373609,0.00028493,119]
[324864875,1714382540266,-3000.0,0.000288,120]
[324864876,1714382540290,-216.5106,0.00028954,30]
[324864877,1714382540314,-3000.0,0.000292,120]
[324864878,1714382540340,-200.0,0.00029335,120]
[324864879,1714382540364,-3000.0,0.000296,120]
[324864880,1714382540388,-1206.07028754,0.00029851,30]
[324864881,1714382540413,-244.32785364,0.0003,30]
[324864882,1714382540435,-5000.0,0.0003,120]
[324864883,1714382540459,-13335.0,0.0003,30]
[324864884,1714382540483,-160.13,0.0003049,35]
[324864885,1714382540512,-3640.0,0.0003067,35]
[324864886,1714382540535,-180.0,0.0003067,35]
[324864887,1714382540565,-299.5,0.0003068,35]
[324864888,1714382540590,-3640.0,0.0003068,35]
[324864889,1714382540616,-180.0,0.0003068,35]
[324864890,1714382540639,-167.52,0.0003069,35]
[324864891,1714382540662,-150.5,0.0003069,35]
[324864892,1714382540686,-3640.0,0.0003069,35]
[324864893,1714382540709,-180.0,0.0003069,35]
[324864894,1714382540734,-200.0,0.00031185,120]
[324864895,1714382540758,-180.0,0.0003148,35]
[324864896,1714382540784,-3640.0,0.0003148,35]
[324864897,1714382540810,-180.0,0.0003149,35]
[324864898,1714382540837,-3640.0,0.0003149,35]
[324864899,1714382540864,-856.03,0.000318,30]
[324864900,1714382540889,-2834.01,0.00032,120]
[324864901,1714382540912,-811.47,0.00032,120]
[324864902,1714382540941,-200.0,0.00032876,30]
[324864903,1714382540965,-200.0,0.00032876,30]
[324864904,1714382540988,-200.0,0.00032876,30]
[324864905,1714382541012,-200.0,0.00032876,30]
[324864906,1714382541035,-200.0,0.00032876,30]
[324864907,1714382541163,-200.0,0.00032876,30]
[324864908,1714382541189,-200.0,0.00032876,30]
[324864909,1714382541212,-200.0,0.00032876,30]
[324864910,1714382541236,-200.0,0.00032876,30]
[324864911,1714382541262,-200.0,0.00032876,30]
[324864912,1714382541286,-200.0,0.00032876,30]
[324864913,1714382541310,-200.0,0.00032876,30]
[324864914,1714382541333,-200.0,0.00032876,30]
[324864915,1714382541356,-200.0,0.00032876,30]
[324864916,1714382541378,-200.0,0.00032876,30]
[324864917,1714382541402,-200.0,0.00032876,30]
[324864918,1714382541425,-200.0,0.00032876,30]
[324864919,1714382541448,-200.0,0.00032876,30]
[324864920,1714382541470,-200.0,0.00032876,30]
[324864921,1714382541493,-200.0,0.00032876,30]
[324864922,1714382541516,-307.06673066,0.00032876,30]
[324864923,1714382541539,-500.0,0.000329,60]
[324864924,1714382541564,-5000.0,0.00033,120]
[324864925,1714382541590,-154.81422293,0.00035,30]
[324864926,1714382541613,-564.41061078,0.00035,30]
[324864927,1714382541636,-15185.0,0.00035,30]
[324864928,1714382541660,-791.81686347,0.00035,30]
[324864929,1714382541683,-2100.14318855,0.00035,60]
[324864930,1714382541706,-1161.570392,0.00035616,120]
[324864931,1714382541728,-10000.0,0.00036,30]
[324864932,1714382541751,-5000.0,0.00036,120]
[324864933,1714382541776,-1828.44111052,0.00036,30]
[324864934,1714382541803,-174185.36302884,0.00037,90]
[324864935,1714382541832,-3000.0,0.000375,32]
[324864936,1714382541860,-3000.0,0.0003751,32]
[324864937,1714382541885,-3000.0,0.0003752,32]
[324864938,1714382541910,-3000.0,0.0003753,32]
[324864939,1714382541935,-3000.0,0.0003754,32]
[324864940,1714382541960,-3000.0,0.0003755,32]
[324864941,1714382541984,-3000.0,0.0003756,32]
[324864942,1714382542009,-3000.0,0.0003757,32]
[324864943,1714382542033,-3000.0,0.0003758,32]
[324864944,1714382542057,-3000.0,0.0003759,32]
[324864945,1714382542086,-3000.0,0.000376,32]
[324864946,1714382542110,-3000.0,0.0003761,32]
[324864947,1714382542133,-3000.0,0.0003762,32]
[324864948,1714382542157,-3000.0,0.0003763,32]
[324864949,1714382542180,-3000.0,0.0003764,32]
[324864950,1714382542203,-3000.0,0.0003765,32]
[324864951,1714382542228,-3000.0,0.0003766,32]
[324864952,1714382542253,-4700.473011,0.0003767,32]
[324864953,1714382542276,-502.86774339,0.00038356,30]
[324864954,1714382542298,-562.91933716,0.000388,30]
[324864955,1714382542325,-182.89,0.0003898,35]
[324864956,1714382542348,-3646.79,0.0003898,35]
[324864957,1714382542371,-180.0,0.0003899,35]
[324864958,1714382542394,-3640.0,0.0003899,35]
[324864959,1714382542416,-158.21094722,0.00039,120]
[324864960,1714382542441,-14221.65644448,0.00039,30]
[324864961,1714382546542,-8848.18005175,0.00039,30]
[324864962,1714382546566,-232.10092761,0.00039397,30]
[324864963,1714382546591,-629.62943843,0.0003955,120]
[324864964,1714382546614,-500.0,0.00039726,30]
[324864965,1714382546637,-500.0,0.00039726,30]
[324864966,1714382546660,-500.0,0.00039726,30]
[324864967,1714382546683,-500.0,0.00039726,30]
[324864968,1714382546706,-500.0,0.00039726,30]
[324864969,1714382546729,-500.0,0.00039726,30]
[324864970,1714382546752,-500.0,0.00039726,30]
[324864971,1714382546775,-500.0,0.00039726,30]
[324864972,1714382546803,-500.0,0.00039726,30]
[324864973,1714382546831,-500.0,0.00039726,30]
[324864974,1714382546855,-500.0,0.00039726,30]
[324864975,1714382546881,-500.0,0.00039726,30]
[324864976,1714382546905,-500.0,0.00039726,30]
[324864977,1714382546928,-500.0,0.00039726,30]
[324864978,1714382546952,-500.0,0.00039726,30]
[324864979,1714382546975,-500.0,0.00039726,30]
[324864980,1714382546997,-444.49555432,0.00039726,30]
[324864981,1714382547129,-210.09817641,0.0004,120]
[324864982,1714382547152,-381635.49585148,0.0004,30]
[324864983,1714382560259,-118364.50414852,0.0004,30]
[324864984,1714382560283,-7000.0,0.0004,120]
[324864985,1714382560305,-150.0,0.0004,120]
[324864986,1714382560328,-11304.17259952,0.0004,120]
[324864987,1714382560351,-153.13,0.0004,120]
[324864988,1714382560376,-14304.2336245,0.00040547,120]
[324864989,1714382560398,-9700.73781865,0.00040547,120]
[324864990,1714382560421,-1195.9385,0.00040789,40]
[324864991,1714382560443,-999.0,0.00040821,30]
[324864992,1714382560466,-2000.0,0.00041096,30]
[324864993,1714382560490,-2000.0,0.00041096,30]
[324864994,1714382560512,-2000.0,0.00041096,30]
[324864995,1714382560534,-1036.359,0.00041096,30]
[324864996,1714382560561,-544.66074317,0.00041096,31]
[324864997,1714382560589,-544.66074317,0.00041096,31]
[324864998,1714382560618,-544.66074317,0.00041096,31]
[324864999,1714382560642,-544.66074317,0.00041096,31]
[324865000,1714382560666,-544.66074317,0.00041096,31]
[324865001,1714382560697,-544.66074317,0.00041096,31]
[324865002,1714382560722,-544.66074317,0.00041096,31]
[324865003,1714382560750,-544.66074317,0.00041096,31]
[324865004,1714382560776,-544.66074317,0.00041096,31]
[324865005,1714382560806,-544.66074317,0.00041096,31]
[324865006,1714382560836,-544.66074317,0.00041096,31]
[324865007,1714382560862,-544.66074317,0.00041096,31]
[324865008,1714382560890,-544.66074317,0.00041096,31]
[324865009,1714382560915,-544.66074317,0.00041096,31]
[324865010,1714382560939,-544.66074317,0.00041096,31]
[324865011,1714382560968,-544.66074317,0.00041096,31]
[324865012,1714382560996,-544.66074317,0.00041096,31]
[324865013,1714382561022,-544.66074317,0.00041096,31]
[324865014,1714382561047,-544.66074317,0.00041096,31]
[324865015,1714382561071,-544.66074317,0.00041096,31]
[324865016,1714382561098,-544.66074317,0.00041096,31]
[324865017,1714382561123,-544.66074317,0.00041096,31]
[324865018,1714382561149,-544.66074317,0.00041096,31]
[324865019,1714382561175,-544.66074317,0.00041096,31]
[324865020,1714382561200,-544.66074317,0.00041096,31]
[324865021,1714382561227,-544.66074317,0.00041096,31]
[324865022,1714382561254,-544.66074317,0.00041096,31]
[324865023,1714382561281,-544.66074317,0.00041096,31]
[324865024,1714382561309,-544.66074317,0.00041096,31]
[324865025,1714382561334,-544.66074317,0.00041096,31]
[324865026,1714382561358,-544.66074317,0.00041096,31]
[324865027,1714382561384,-544.66074317,0.00041096,31]
[324865028,1714382561410,-544.66074317,0.00041096,31]
[324865029,1714382561438,-544.66074317,0.00041096,31]
[324865030,1714382561462,-544.66074317,0.00041096,31]
[324865031,1714382561486,-544.66074317,0.00041096,31]
[324865032,1714382561511,-544.66074317,0.00041096,31]
[324865033,1714382561535,-544.66074317,0.00041096,31]
[324865034,1714382561561,-544.66074317,0.00041096,31]
[324865035,1714382561588,-544.66074317,0.00041096,31]
[324865036,1714382561613,-544.66074317,0.00041096,31]
[324865037,1714382561638,-544.66074317,0.00041096,31]
[324865038,1714382561666,-544.66074317,0.00041096,31]
[324865039,1714382561690,-544.66074317,0.00041096,31]
[324865040,1714382561716,-544.66074317,0.00041096,31]
[324865041,1714382561741,-544.66074317,0.00041096,31]
[324865042,1714382561765,-544.66074317,0.00041096,31]
[324865043,1714382561791,-544.66074317,0.00041096,31]
[324865044,1714382561817,-544.66074317,0.00041096,31]
[324865045,1714382561845,-544.66074317,0.00041096,31]
[324865046,1714382561870,-544.66074317,0.00041096,31]
[324865047,1714382561896,-544.66074317,0.00041096,31]
[324865048,1714382561922,-544.66074317,0.00041096,31]
[324865049,1714382561947,-544.66074317,0.00041096,31]
[324865050,1714382562122,-544.66074317,0.00041096,31]
[324865051,1714382562148,-544.66074317,0.00041096,31]
[324865052,1714382562172,-544.66074317,0.00041096,31]
[324865053,1714382562196,-544.66074317,0.00041096,31]
[324865054,1714382562219,-544.66074317,0.00041096,31]
[324865055,1714382562242,-544.66074317,0.00041096,31]
[324865056,1714382562264,-544.66074317,0.00041096,31]
[324865057,1714382562287,-544.66074317,0.00041096,31]
[324865058,1714382562310,-544.66074317,0.00041096,31]
[324865059,1714382562334,-544.66074317,0.00041096,31]
[324865060,1714382562356,-544.66074317,0.00041096,31]
[324865061,1714382562379,-544.66074317,0.00041096,31]
[324865062,1714382562401,-544.66074317,0.00041096,31]
[324865063,1714382562425,-544.66074317,0.00041096,31]
[324865064,1714382562448,-544.66074317,0.00041096,31]
[324865065,1714382562470,-544.66074317,0.00041096,31]
[324865066,1714382562493,-544.66074317,0.00041096,31]
[324865067,1714382562515,-544.66074317,0.00041096,31]
[324865068,1714382562539,-544.66074317,0.00041096,31]
[324865069,1714382562563,-544.66074317,0.00041096,31]
[324865070,1714382562586,-544.66074317,0.00041096,31]
[324865071,1714382562609,-544.66074317,0.00041096,31]
[324865072,1714382562632,-544.66074317,0.00041096,31]
[324865073,1714382562654,-544.66074317,0.00041096,31]
[324865074,1714382562679,-599.12681749,0.00041096,31]
[324865075,1714382562703,-524.2359653,0.00041096,31]
[324865076,1714382562726,-524.2359653,0.00041096,31]
[324865077,1714382562751,-524.2359653,0.00041096,31]
[324865078,1714382562777,-524.2359653,0.00041096,31]
[324865079,1714382562808,-524.2359653,0.00041096,31]
[324865080,1714382562834,-524.2359653,0.00041096,31]
[324865081,1714382562859,-524.2359653,0.00041096,31]
[324865082,1714382562883,-599.12681749,0.00041096,31]
[324865083,1714382562907,-524.2359653,0.00041096,31]
[324865084,1714382562930,-599.12681749,0.00041096,31]
[324865085,1714382562952,-524.2359653,0.00041096,31]
[324865086,1714382562976,-524.2359653,0.00041096,31]
[324865087,1714382563001,-524.2359653,0.00041096,31]
[324865088,1714382563025,-524.2359653,0.00041096,31]
[324865089,1714382563048,-524.2359653,0.00041096,31]
[324865090,1714382563072,-599.12681749,0.00041096,31]
[324865091,1714382563097,-524.2359653,0.00041096,31]
[324865092,1714382563120,-524.2359653,0.00041096,31]
[324865093,1714382563144,-599.12681749,0.00041096,31]
[324865094,1714382563168,-524.2359653,0.00041096,31]
[324865095,1714382563191,-599.12681753,0.00041096,31]
[324865096,1714382563213,-1161.570392,0.00041553,120]
[324865097,1714382563237,-978.30257748,0.00041917,32]
[324865098,1714382563260,-444.3278817,0.00042,120]
[324865099,1714382563284,-1637.72236854,0.000424,120]
[324865100,1714382563307,-872.85182431,0.000428,60]
[324865101,1714382563330,-500.0,0.000429,42]
[324865102,1714382563352,-500.0,0.000429,42]
[324865103,1714382563376,-14304.2336245,0.00043547,120]
[324865104,1714382563398,-2515.30954919,0.00043835,120]
[324865105,1714382563421,-18904.1622897,0.00043836,120]
[324865106,1714382563444,-190403.9772126,0.000439,30]
[324865107,1714382563466,-2000.0,0.00044,120]
[324865108,1714382563488,-219.44340154,0.00044999,120]
[324865109,1714382563511,-221.65555556,0.00045,120]
[324865110,1714382563534,-3998.89158982,0.00045,120]
[324865111,1714382563557,-500.0,0.00045,30]
[324865112,1714382563580,-8000.0,0.00045,120]
[324865113,1714382563605,-2708.0,0.00045,30]
[324865114,1714382563628,-200.0,0.00045,30]
[324865115,1714382563650,-2940.45260206,0.00045,120]
[324865116,1714382563673,-1282606.6775126,0.00045492,30]
[324865117,1714382563696,-1832000.0,0.000455,120]
[324865118,1714382563718,-742.53528009,0.000455,120]
[324865119,1714382563742,-406965.73633008,0.0004555,120]
[324865120,1714382569141,-5648.24469161,0.00035,30]
[324865121,1714382569170,-1605034.26366992,0.0004555,120]
[324865122,1714382569195,-221.65555556,0.00045644,120]
[324865123,1714382569218,-306.0,0.0004566,120]
[324865124,1714382569242,-221.65555556,0.00046274,120]
[324865125,1714382569266,-14304.2336245,0.00046547,120]
[324865126,1714382570242,-221.65555556,0.00046904,120]
[324865127,1714382570271,-3348.96542391,0.0004698,120]
[324865128,1714382570296,-1161.570392,0.00047489,120]
[324865129,1714382570319,-221.65555556,0.00047534,120]
[324865130,1714382570344,-150000.0,0.0004785,120]
[324865131,1714382570369,-2110.85134365,0.0004788,30]
[324865132,1714382570392,-120000.0,0.0004793,120]
[324865133,1714382570420,-2000.0,0.00048,120]